[Event "Caplin Hastings Masters 2023-24"]
[Site "Hastings"]
[Date "2024.01.01"]
[Round "5.23"]
[White "Southcott-Moyers, Indy"]
[Black "Teh, Wee Zhun"]
[Result "1/2-1/2"]
[ECO "D11"]
[WhiteElo "2123"]
[BlackElo "1858"]
[Annotator "RC"]
[PlyCount "148"]
[EventDate "2023.12.18"]
[EventType "swiss"]
[EventCountry "ENG"]
[SourceTitle "playchess.com"]
[Source "ChessBase"]
[SourceQuality "1"]
[TimeControl "40/6000+30:3000+30"]

1. d4 {[%emt 0:00:01]} d5 {[%emt 0:00:21]} 2. c4 {[%emt 0:00:04]} c6 {[%emt 0:00:13]} 3. e3 {[%emt 0:00:51]} Nf6 {[%emt 0:01:11]} 4. Nf3 {[%emt 0:00:04]} Bf5 {[%emt 0:00:50]} 5. Nc3 {[%emt 0:00:07]} a6 {[%emt 0:00:45]} 6. a4 {[%emt 0:06:56]} h6 {[%emt 0:11:22]} 7. Qb3 {[%emt 0:06:53]} Ra7 {[%emt 0:06:15]} 8. a5 {[%emt 0:02:12]} e6 {[%emt 0:07:36]} 9. Qb6 {[%emt 0:01:46]} Qxb6 {[%emt 0:03:45]} 10. axb6 {[%emt 0:00:15]} Ra8 {[%emt 0:00:11]} 11. c5 {[%emt 0:00:04]} Nbd7 {[%emt 0:07:50]} 12. Nd2 {[%emt 0:11:53]} Nxc5 {[%emt 0:08:06]} 13. dxc5 {[%emt 0:00:09]} Bxc5 {[%emt 0:00:22]} 14. Na4 {[%emt 0:04:50]} Bb4 {[%emt 0:01:58]} 15. Be2 {[%emt 0:04:22]} O-O {[%emt 0:13:49]} 16. O-O {[%emt 0:04:36]} Nd7 {[%emt 0:04:57]} 17. Nb3 {[%emt 0:15:03]} Bc2 {[%emt 0:09:07]} 18. Bd2 {[%emt 0:09:40]} Bxd2 {[%emt 0:02:50]} 19. Nxd2 {[%emt 0:01:27]} Bxa4 {[%emt 0:03:41]} 20. Rxa4 {[%emt 0:00:02]} c5 {[%emt 0:03:15]} 21. Nb3 {[%emt 0:18:55]} Nxb6 {[%emt 0:04:23]} 22. Ra3 {[%emt 0:02:20]} c4 {[%emt 0:07:35]} 23. Nc5 {[%emt 0:02:36]} Rab8 {[%emt 0:01:47]} 24. b4 {[%emt 0:01:47]} Rfd8 {[%emt 0:01:09]} 25. f4 {[%emt 0:01:49]} Nd7 {[%emt 0:02:12]} 26. Na4 {[%emt 0:01:56]} Nf6 {[%emt 0:01:27]} 27. Nc3 {[%emt 0:00:38]} d4 {[%emt 0:01:50]} 28. exd4 {[%emt 0:03:54]} Rxd4 {[%emt 0:00:08]} 29. b5 {[%emt 0:03:19]} Nd5 {[%emt 0:04:26]} 30. g3 {[%emt 0:04:53]} Nxc3 {[%emt 0:00:43]} 31. Rxc3 {[%emt 0:00:02]} axb5 {[%emt 0:00:13]} 32. Rb1 {[%emt 0:00:49]} e5 {[%emt 0:01:07]} 33. Rxb5 {[%emt 0:01:38]} exf4 {[%emt 0:00:07]} 34. Rxc4 {[%emt 0:00:52]} Rxc4 {[%emt 0:00:19]} 35. Bxc4 {[%emt 0:00:01]} fxg3 {[%emt 0:00:13]} 36. hxg3 {[%emt 0:00:01]} b6 {[%emt 0:00:56]} 37. Rd5 {[%emt 0:00:50]} Rc8 {[%emt 0:01:07]} 38. Ba6 {[%emt 0:01:02]} Rc7 {[%emt 0:00:36]} 39. Rd6 {[%emt 0:00:25]} g6 {[%emt 0:00:30]} 40. Rxb6 {[%emt 0:00:06]} Kg7 {[%emt 0:00:19]} 41. Kg2 {[%emt 0:50:31]} h5 {[%emt 0:50:28]} 42. Bb5 {[%emt 0:00:59]} Re7 {[%emt 0:00:00]} 43. Bc4 {[%emt 0:00:00]} Rc7 {[%emt 0:00:00]} 44. Bb3 {[%emt 0:00:00]} Rd7 {[%emt 0:00:00]} 45. Kf3 {[%emt 0:00:00]} Rd3+ {[%emt 0:00:00]} 46. Kf2 {[%emt 0:00:00]} Rd7 {[%emt 0:00:00]} 47. Ke3 {[%emt 0:00:00]} Re7+ {[%emt 0:00:00]} 48. Kf4 {[%emt 0:00:00]} Rd7 {[%emt 0:00:00]} 49. Rb5 {[%emt 0:00:00]} Rd4+ {[%emt 0:00:00]} 50. Ke3 {[%emt 0:00:00]} Rd7 {[%emt 0:00:00]} 51. Bd5 {[%emt 0:00:00]} Ra7 {[%emt 0:00:00]} 52. Ke4 {[%emt 0:00:00]} Ra4+ {[%emt 0:00:00]} 53. Kf3 {[%emt 0:00:00]} Ra7 {[%emt 0:00:00]} 54. Bb3 {[%emt 0:00:00]} Rc7 {[%emt 0:00:00]} 55. Kf4 {[%emt 0:00:00]} Rd7 {[%emt 0:00:00]} 56. Bd5 {[%emt 0:00:00]} Rd8 {[%emt 0:00:00]} 57. Ke5 {[%emt 0:00:00]} Re8+ {[%emt 0:00:00]} 58. Kd4 {[%emt 0:00:00]} Re7 {[%emt 0:00:00]} 59. Rb3 {[%emt 0:00:00]} Kf6 {[%emt 0:00:00]} 60. Rf3+ {[%emt 0:00:00]} Kg7 {[%emt 0:00:00]} 61. Kc5 {[%emt 0:00:00]} Ra7 {[%emt 0:00:00]} 62. Kd6 {[%emt 0:00:00]} Ra6+ {[%emt 0:00:00]} 63. Ke5 {[%emt 0:00:00]} Ra7 {[%emt 0:00:29]} 64. Rb3 {[%emt 0:00:00]} Re7+ {[%emt 0:00:38]} 65. Kd6 {[%emt 0:00:00]} Ra7 {[%emt 0:00:48]} 66. Bc6 {[%emt 0:00:00]} Kf6 {[%emt 0:01:07]} 67. Kd5 {[%emt 0:00:00]} Kg5 {[%emt 0:02:47]} 68. Ke4 {[%emt 0:00:00]} Ra6 {[%emt 0:01:42]} 69. Bd5 {[%emt 0:00:00]} f6 {[%emt 0:01:17]} 70. Kf3 {[%emt 0:00:05]} f5 {[%emt 0:01:51]} 71. Rc3 {[%emt 0:01:41]} Ra4 {[%emt 0:02:53]} 72. Rc4 {[%emt 0:01:04]} Rxc4 {[%emt 0:01:35]} 73. Bxc4 {[%emt 0:00:02]} h4 {[%emt 0:00:22]} 74. gxh4+ {[%emt 0:00:32]} Kxh4 {[%emt 0:00:50]} 1/2-1/2

[Event "Caplin Hastings Masters 2023-24"]
[Site "Hastings"]
[Date "2024.01.01"]
[Round "5.24"]
[White "Rami, Talab"]
[Black "Bai, Xue"]
[Result "1/2-1/2"]
[ECO "C54"]
[WhiteElo "1947"]
[BlackElo "2099"]
[Annotator "RC"]
[PlyCount "132"]
[EventDate "2023.12.18"]
[EventType "swiss"]
[EventCountry "ENG"]
[SourceTitle "playchess.com"]
[Source "ChessBase"]
[SourceQuality "1"]
[TimeControl "40/6000+30:3000+30"]

1. e4 {[%emt 0:00:06]} e5 {[%emt 0:00:04]} 2. Nf3 {[%emt 0:00:08]} Nc6 {[%emt 0:00:06]} 3. Bc4 {[%emt 0:00:29]} Bc5 {[%emt 0:00:07]} 4. c3 {[%emt 0:00:37]} Nf6 {[%emt 0:00:07]} 5. d3 {[%emt 0:00:28]} d6 {[%emt 0:00:18]} 6. Nbd2 {[%emt 0:00:32]} a6 {[%emt 0:02:14]} 7. Bb3 {[%emt 0:00:32]} b5 {[%emt 0:03:17]} 8. h3 {[%emt 0:01:48]} Bb6 {[%emt 0:00:58]} 9. Nf1 {[%emt 0:01:33]} Na5 {[%emt 0:01:23]} 10. Bc2 {[%emt 0:03:00]} c5 {[%emt 0:00:06]} 11. Ng3 {[%emt 0:02:14]} Nc6 {[%emt 0:02:06]} 12. O-O {[%emt 0:04:31]} O-O {[%emt 0:04:09]} 13. Qe2 {[%emt 0:05:45]} h6 {[%emt 0:11:34]} 14. Rd1 {[%emt 0:03:51]} Re8 {[%emt 0:03:52]} 15. Nh4 {[%emt 0:06:43]} Be6 {[%emt 0:06:25]} 16. Ngf5 {[%emt 0:02:57]} Kh7 {[%emt 0:04:21]} 17. Qf3 {[%emt 0:04:18]} Ng8 {[%emt 0:05:49]} 18. Qg3 {[%emt 0:06:50]} g6 {[%emt 0:01:11]} 19. Ne3 {[%emt 0:00:28]} Nf6 {[%emt 0:01:13]} 20. Qf3 {[%emt 0:01:35]} Rc8 {[%emt 0:14:18]} 21. Bb3 {[%emt 0:04:56]} Qe7 {[%emt 0:05:11]} 22. Bd2 {[%emt 0:11:05]} a5 {[%emt 0:05:34]} 23. Rac1 {[%emt 0:08:18]} a4 {[%emt 0:00:24]} 24. Bd5 {[%emt 0:00:46]} Nd8 {[%emt 0:07:29]} 25. Bxe6 {[%emt 0:05:12]} Qxe6 {[%emt 0:00:17]} 26. c4 {[%emt 0:02:13]} Nc6 {[%emt 0:01:09]} 27. Rf1 {[%emt 0:02:52]} Bd8 {[%emt 0:01:30]} 28. Nd5 {[%emt 0:11:12]} bxc4 {[%emt 0:04:19]} 29. dxc4 {[%emt 0:00:53]} Nd4 {[%emt 0:04:38]} 30. Qe3 {[%emt 0:02:52]} Nxe4 {[%emt 0:04:36]} 31. Qxe4 {[%emt 0:00:37]} f5 {[%emt 0:00:05]} 32. Nxf5 {[%emt 0:05:02]} gxf5 {[%emt 0:00:02]} 33. Qe3 {[%emt 0:01:36]} Bg5 {[%emt 0:03:05]} 34. f4 {[%emt 0:00:43]} Bxf4 {[%emt 0:00:22]} 35. Nxf4 {[%emt 0:00:11]} exf4 {[%emt 0:00:05]} 36. Qxe6 {[%emt 0:00:11]} Rxe6 {[%emt 0:00:04]} 37. Rce1 {[%emt 0:01:33]} Ne2+ {[%emt 0:01:52]} 38. Kh2 {[%emt 0:01:11]} Re4 {[%emt 0:00:28]} 39. b3 {[%emt 0:00:45]} a3 {[%emt 0:04:10]} 40. Rf2 {[%emt 0:04:00]} Rce8 {[%emt 0:01:31]} 41. Bc1 {[%emt 0:51:42]} Nxc1 {[%emt 0:50:32]} 42. Rxc1 {[%emt 0:00:03]} Re2 {[%emt 0:00:19]} 43. Rc2 {[%emt 0:01:09]} R2e4 {[%emt 0:08:22]} 44. Rfd2 {[%emt 0:00:00]} R8e6 {[%emt 0:00:00]} 45. Kg1 {[%emt 0:00:00]} Kg6 {[%emt 0:00:00]} 46. Kf2 {[%emt 0:00:00]} Kf6 {[%emt 0:00:00]} 47. Rd3 {[%emt 0:00:00]} Re3 {[%emt 0:00:00]} 48. Rd5 {[%emt 0:00:00]} Kg5 {[%emt 0:00:00]} 49. Rcd2 {[%emt 0:00:00]} Rc3 {[%emt 0:00:00]} 50. R5d3 {[%emt 0:00:00]} Rc1 {[%emt 0:00:00]} 51. Rd1 {[%emt 0:00:00]} Rxd1 {[%emt 0:00:00]} 52. Rxd1 {[%emt 0:00:00]} h5 {[%emt 0:00:00]} 53. Rd3 {[%emt 0:00:00]} h4 {[%emt 0:00:00]} 54. Rf3 {[%emt 0:00:00]} d5 {[%emt 0:00:00]} 55. cxd5 {[%emt 0:00:00]} Rd6 {[%emt 0:00:00]} 56. Rd3 {[%emt 0:00:00]} Kf6 {[%emt 0:00:00]} 57. Kf3 {[%emt 0:00:00]} Ke5 {[%emt 0:00:00]} 58. Rd2 {[%emt 0:00:00]} Rxd5 {[%emt 0:00:00]} 59. Rxd5+ {[%emt 0:00:00]} Kxd5 {[%emt 0:00:00]} 60. Kxf4 {[%emt 0:00:00]} Kd4 {[%emt 0:00:00]} 61. Kxf5 {[%emt 0:00:00]} Kc3 {[%emt 0:00:00]} 62. Ke4 {[%emt 0:00:00]} Kb2 {[%emt 0:00:00]} 63. Kd3 {[%emt 0:00:00]} Ka1 {[%emt 0:00:00]} 64. Kc3 {[%emt 0:00:00]} Kxa2 {[%emt 0:00:00]} 65. Kc2 {[%emt 0:00:00]} Ka1 {[%emt 0:00:00]} 66. Kc1 {[%emt 0:00:00]} Ka2 {[%emt 0:00:00]} 1/2-1/2

[Event "Caplin Hastings Masters 2023-24"]
[Site "Hastings"]
[Date "2024.01.01"]
[Round "5.25"]
[White "Sivanandan, Bodhana"]
[Black "Brown, Thomas"]
[Result "0-1"]
[ECO "B08"]
[WhiteElo "1857"]
[BlackElo "2095"]
[Annotator "RC"]
[PlyCount "170"]
[EventDate "2023.12.18"]
[EventType "swiss"]
[EventCountry "ENG"]
[SourceTitle "playchess.com"]
[Source "ChessBase"]
[SourceQuality "1"]
[TimeControl "40/6000+30:3000+30"]

1. e4 {[%emt 0:06:08]} g6 {[%emt 0:00:11]} 2. d4 {[%emt 0:00:23]} Bg7 {[%emt 0:00:08]} 3. Nc3 {[%emt 0:00:40]} c6 {[%emt 0:00:08]} 4. Nf3 {[%emt 0:00:28]} d6 {[%emt 0:00:08]} 5. Bg5 {[%emt 0:00:41]} Nf6 {[%emt 0:02:58]} 6. Qd2 {[%emt 0:09:37]} O-O {[%emt 0:08:01]} 7. Bd3 {[%emt 0:06:41]} Qc7 {[%emt 0:05:36]} 8. Bh6 {[%emt 0:09:06]} e5 {[%emt 0:03:35]} 9. Bxg7 {[%emt 0:05:23]} Kxg7 {[%emt 0:00:05]} 10. h4 {[%emt 0:02:55]} h5 {[%emt 0:13:58]} 11. dxe5 {[%emt 0:08:52]} dxe5 {[%emt 0:00:11]} 12. Ng5 {[%emt 0:02:28]} Nbd7 {[%emt 0:03:03]} 13. O-O-O {[%emt 0:08:07]} Nc5 {[%emt 0:01:49]} 14. Rhf1 {[%emt 0:01:36]} b5 {[%emt 0:04:49]} 15. f4 {[%emt 0:02:04]} Bg4 {[%emt 0:05:43]} 16. fxe5 {[%emt 0:05:53]} Qxe5 {[%emt 0:01:04]} 17. Nf3 {[%emt 0:00:54]} Bxf3 {[%emt 0:03:34]} 18. gxf3 {[%emt 0:00:10]} Rad8 {[%emt 0:09:53]} 19. f4 {[%emt 0:03:16]} Qd4 {[%emt 0:06:29]} 20. e5 {[%emt 0:08:19]} Ng4 {[%emt 0:03:22]} 21. Ne2 {[%emt 0:02:01]} Nxd3+ {[%emt 0:01:23]} 22. cxd3 {[%emt 0:01:21]} Qc5+ {[%emt 0:04:21]} 23. Kb1 {[%emt 0:00:15]} Ne3 {[%emt 0:00:33]} 24. d4 {[%emt 0:02:59]} Nxf1 {[%emt 0:00:07]} 25. Rxf1 {[%emt 0:00:27]} Qd5 {[%emt 0:03:37]} 26. Qe3 {[%emt 0:02:59]} f6 {[%emt 0:05:19]} 27. e6 {[%emt 0:02:58]} Qf5+ {[%emt 0:00:44]} 28. Ka1 {[%emt 0:01:26]} Rfe8 {[%emt 0:02:36]} 29. d5 {[%emt 0:01:19]} Qxd5 {[%emt 0:10:14]} 30. Qxa7+ {[%emt 0:03:25]} Kh6 {[%emt 0:01:09]} 31. Nc3 {[%emt 0:01:17]} Qxe6 {[%emt 0:00:38]} 32. f5 {[%emt 0:01:26]} Qe7 {[%emt 0:03:12]} 33. Qf2 {[%emt 0:01:48]} b4 {[%emt 0:03:22]} 34. Nb1 {[%emt 0:00:54]} Ra8 {[%emt 0:03:08]} 35. Qg3 {[%emt 0:01:51]} Qf7 {[%emt 0:00:51]} 36. b3 {[%emt 0:01:07]} Rg8 {[%emt 0:00:56]} 37. Qf4+ {[%emt 0:01:08]} Kh7 {[%emt 0:00:49]} 38. fxg6+ {[%emt 0:00:26]} Qxg6 {[%emt 0:00:12]} 39. Qxb4 {[%emt 0:00:51]} f5 {[%emt 0:01:03]} 40. Qd4 {[%emt 0:03:22]} Rgd8 {[%emt 0:00:51]} 41. Qb2 {[%emt 0:52:46]} Rf8 {[%emt 0:00:49]} 42. Rf4 {[%emt 0:00:00]} Qd6 {[%emt 0:03:40]} 43. Rd4 {[%emt 0:00:00]} Qf6 {[%emt 0:03:03]} 44. Rf4 {[%emt 0:00:00]} Rae8 {[%emt 0:04:55]} 45. Qxf6 {[%emt 0:00:00]} Rxf6 {[%emt 0:00:04]} 46. Nc3 {[%emt 0:00:00]} Re5 {[%emt 0:00:25]} 47. Kb2 {[%emt 0:00:00]} Rg6 {[%emt 0:00:12]} 48. Rc4 {[%emt 0:00:00]} Rf6 {[%emt 0:01:59]} 49. Rf4 {[%emt 0:00:00]} Kg6 {[%emt 0:00:23]} 50. a4 {[%emt 0:00:00]} Rd6 {[%emt 0:00:51]} 51. b4 {[%emt 0:00:00]} Kf6 {[%emt 0:03:50]} 52. a5 {[%emt 0:00:00]} Re8 {[%emt 0:02:31]} 53. Kb3 {[%emt 0:00:00]} Ke5 {[%emt 0:05:17]} 54. Rf1 {[%emt 0:00:00]} Rdd8 {[%emt 0:01:25]} 55. a6 {[%emt 0:00:00]} f4 {[%emt 0:01:37]} 56. Na4 {[%emt 0:00:00]} Ke4 {[%emt 0:01:51]} 57. a7 {[%emt 0:00:00]} f3 {[%emt 0:01:40]} 58. Kc4 {[%emt 0:00:00]} Ke3 {[%emt 0:02:04]} 59. Kc5 {[%emt 0:00:00]} Ke2 {[%emt 0:01:12]} 60. Rb1 {[%emt 0:00:00]} Ra8 {[%emt 0:05:58]} 61. Ra1 {[%emt 0:00:00]} f2 {[%emt 0:00:49]} 62. Kb6 {[%emt 0:00:00]} f1=Q {[%emt 0:01:34]} 63. Rxf1 {[%emt 0:00:00]} Kxf1 {[%emt 0:00:15]} 64. Nc5 {[%emt 0:00:00]} Kg2 {[%emt 0:00:31]} 65. Na6 {[%emt 0:00:00]} Rec8 {[%emt 0:00:50]} 66. Nc7 {[%emt 0:00:00]} Rxc7 {[%emt 0:00:07]} 67. Kxc7 {[%emt 0:00:00]} Rxa7+ {[%emt 0:00:03]} 68. Kxc6 {[%emt 0:00:00]} Kg3 {[%emt 0:00:06]} 69. b5 {[%emt 0:00:00]} Kxh4 {[%emt 0:00:09]} 70. b6 {[%emt 0:00:00]} Ra6 {[%emt 0:00:18]} 71. Kb5 {[%emt 0:00:00]} Rxb6+ {[%emt 0:00:10]} 72. Kxb6 {[%emt 0:00:00]} Kg3 {[%emt 0:00:02]} 73. Kc5 {[%emt 0:00:00]} h4 {[%emt 0:00:03]} 74. Kd4 {[%emt 0:00:00]} h3 {[%emt 0:00:12]} 75. Ke4 {[%emt 0:00:00]} h2 {[%emt 0:00:05]} 76. Ke5 {[%emt 0:00:00]} h1=Q {[%emt 0:00:09]} 77. Kd4 {[%emt 0:00:00]} Kf4 {[%emt 0:00:09]} 78. Kc4 {[%emt 0:00:00]} Ke4 {[%emt 0:00:06]} 79. Kc5 {[%emt 0:00:00]} Qd1 {[%emt 0:00:12]} 80. Kc6 {[%emt 0:00:00]} Qd5+ {[%emt 0:00:10]} 81. Kb6 {[%emt 0:00:00]} Kd4 {[%emt 0:00:11]} 82. Kc7 {[%emt 0:00:00]} Kc5 {[%emt 0:00:11]} 83. Kb8 {[%emt 0:00:00]} Qd7 {[%emt 0:00:12]} 84. Ka8 {[%emt 0:00:00]} Kb6 {[%emt 0:00:07]} 85. Kb8 {[%emt 0:00:00]} Qd8# {[%emt 0:00:05]} 0-1

[Event "Caplin Hastings Masters 2023-24"]
[Site "Hastings"]
[Date "2024.01.01"]
[Round "5.26"]
[White "Larkin, Benjamin"]
[Black "Gimenez Menchon, Cesar"]
[Result "0-1"]
[ECO "C41"]
[WhiteElo "1814"]
[BlackElo "2088"]
[Annotator "RC"]
[PlyCount "110"]
[EventDate "2023.12.18"]
[EventType "swiss"]
[EventCountry "ENG"]
[SourceTitle "playchess.com"]
[Source "ChessBase"]
[SourceQuality "1"]
[TimeControl "40/6000+30:3000+30"]

1. e4 {[%emt 0:00:02]} d6 {[%emt 0:00:06]} 2. d4 {[%emt 0:00:07]} Nf6 {[%emt 0:00:03]} 3. Nc3 {[%emt 0:00:06]} e5 {[%emt 0:00:05]} 4. Nf3 {[%emt 0:00:24]} Nbd7 {[%emt 0:00:07]} 5. Bc4 {[%emt 0:00:24]} Be7 {[%emt 0:00:06]} 6. O-O {[%emt 0:00:10]} O-O {[%emt 0:00:06]} 7. Re1 {[%emt 0:00:26]} c6 {[%emt 0:00:08]} 8. a4 {[%emt 0:00:07]} h6 {[%emt 0:00:24]} 9. h3 {[%emt 0:01:01]} Re8 {[%emt 0:00:08]} 10. a5 {[%emt 0:00:38]} Qc7 {[%emt 0:06:44]} 11. Be3 {[%emt 0:00:55]} exd4 {[%emt 0:00:35]} 12. Nxd4 {[%emt 0:00:20]} Bf8 {[%emt 0:00:23]} 13. Bf4 {[%emt 0:00:33]} Rb8 {[%emt 0:03:12]} 14. Bg3 {[%emt 0:02:49]} b5 {[%emt 0:01:07]} 15. axb6 {[%emt 0:00:07]} axb6 {[%emt 0:00:04]} 16. b4 {[%emt 0:00:30]} b5 {[%emt 0:01:49]} 17. Bb3 {[%emt 0:00:10]} Ne5 {[%emt 0:00:50]} 18. Kh1 {[%emt 0:00:47]} Bb7 {[%emt 0:02:59]} 19. f4 {[%emt 0:00:44]} Ng6 {[%emt 0:00:12]} 20. e5 {[%emt 0:00:05]} dxe5 {[%emt 0:01:22]} 21. fxe5 {[%emt 0:00:39]} Nxe5 {[%emt 0:08:39]} 22. Ne6 {[%emt 0:00:40]} fxe6 {[%emt 0:08:28]} 23. Bxe5 {[%emt 0:00:14]} Qc8 {[%emt 0:02:06]} 24. Bxb8 {[%emt 0:01:21]} Qxb8 {[%emt 0:00:06]} 25. Rxe6 {[%emt 0:05:10]} Rxe6 {[%emt 0:00:06]} 26. Bxe6+ {[%emt 0:00:09]} Kh8 {[%emt 0:00:02]} 27. Qd4 {[%emt 0:02:23]} Nh5 {[%emt 0:31:15]} 28. Rd1 {[%emt 0:11:33]} c5 {[%emt 0:18:16]} 29. Qf2 {[%emt 0:14:12]} Ng3+ {[%emt 0:02:29]} 30. Kg1 {[%emt 0:00:13]} cxb4 {[%emt 0:00:26]} 31. Rd3 {[%emt 0:12:18]} Bd6 {[%emt 0:04:15]} 32. Nxb5 {[%emt 0:06:58]} Ne4 {[%emt 0:00:13]} 33. Qf7 {[%emt 0:21:26]} Bc5+ {[%emt 0:00:05]} 34. Nd4 {[%emt 0:01:13]} Ng5 {[%emt 0:01:43]} 35. Qf5 {[%emt 0:04:27]} Qd6 {[%emt 0:01:32]} 36. Kh1 {[%emt 0:02:53]} Be4 {[%emt 0:03:28]} 37. Nb5 {[%emt 0:01:50]} Bxf5 {[%emt 0:04:24]} 38. Rxd6 {[%emt 0:02:04]} Nxe6 {[%emt 0:01:03]} 39. Rc6 {[%emt 0:03:26]} Be7 {[%emt 0:02:33]} 40. Nd6 {[%emt 0:01:27]} Nd4 {[%emt 0:01:06]} 41. Rc4 {[%emt 0:51:06]} Bxd6 {[%emt 0:52:04]} 42. Rxd4 {[%emt 0:00:01]} Be7 {[%emt 0:01:00]} 43. Rd2 {[%emt 0:01:01]} Bf6 {[%emt 0:00:54]} 44. Kg1 {[%emt 0:00:42]} Kg8 {[%emt 0:00:54]} 45. Kf2 {[%emt 0:00:11]} Kf7 {[%emt 0:00:06]} 46. Re2 {[%emt 0:00:12]} Bc3 {[%emt 0:01:36]} 47. g4 {[%emt 0:00:28]} Be6 {[%emt 0:02:01]} 48. Kg3 {[%emt 0:00:53]} Ke7 {[%emt 0:00:37]} 49. Kf4 {[%emt 0:00:51]} Kd6 {[%emt 0:00:20]} 50. Ke4 {[%emt 0:00:39]} Kc5 {[%emt 0:00:00]} 51. Rf2 {[%emt 0:00:00]} Bg8 {[%emt 0:00:00]} 52. Kf5 {[%emt 0:00:00]} Bh7+ {[%emt 0:00:00]} 53. Ke6 {[%emt 0:00:00]} Kc4 {[%emt 0:00:00]} 54. Rf4+ {[%emt 0:00:00]} Bd4 {[%emt 0:00:00]} 55. h4 {[%emt 0:00:00]} Bxc2 {[%emt 0:00:00]} 0-1

[Event "Caplin Hastings Masters 2023-24"]
[Site "Hastings"]
[Date "2024.01.01"]
[Round "5.27"]
[White "Lahlum, Hans Olav"]
[Black "Lishoy Gengis Paratazham, Dildarav"]
[Result "1/2-1/2"]
[ECO "A53"]
[WhiteElo "2037"]
[BlackElo "1743"]
[Annotator "NA RC"]
[PlyCount "41"]
[EventDate "2023.12.18"]
[EventType "swiss"]
[EventCountry "ENG"]
[SourceTitle "playchess.com"]
[Source "ChessBase"]
[SourceQuality "1"]
[TimeControl "40/6000+30:3000+30"]

1. d4 {[%emt 0:00:02]} Nf6 {[%emt 0:00:07]} 2. c4 {[%emt 0:00:06]} d6 {[%emt 0:00:05]} 3. Nc3 {[%emt 0:00:18]} e5 {[%emt 0:00:22]} 4. d5 {[%emt 0:00:56]} Bf5 {[%emt 0:00:36]} 5. g3 {[%emt 0:05:34]} Nbd7 {[%emt 0:03:19]} 6. Bg2 {[%emt 0:00:29]} Be7 {[%emt 0:00:30]} 7. e4 {[%emt 0:01:56]} Bg6 {[%emt 0:00:22]} 8. Nge2 {[%emt 0:03:43]} a5 {[%emt 0:02:36]} 9. O-O {[%emt 0:03:33]} O-O {[%emt 0:01:14]} 10. Qc2 {[%emt 0:03:40]} c6 {[%emt 0:07:51]} 11. h3 {[%emt 0:14:26]} Qc7 {[%emt 0:06:22]} 12. f4 {[%emt 0:11:21]} exf4 {[%emt 0:08:46]} 13. gxf4 {[%emt 0:01:21]} cxd5 {[%emt 0:02:14]} 14. f5 {[%emt 0:04:13]} Bh5 {[%emt 0:00:16]} 15. Nxd5 {[%emt 0:03:38]} Nxd5 {[%emt 0:00:41]} 16. exd5 {[%emt 0:00:09]} Bxe2 {[%emt 0:02:12]} 17. Qxe2 {[%emt 0:00:05]} Bf6 {[%emt 0:00:36]} 18. Bf4 {[%emt 0:02:40]} Ne5 {[%emt 0:02:34]} 19. Rac1 {[%emt 0:03:17]} Rfe8 {[%emt 0:07:21]} 20. Qc2 {[%emt 0:03:08]} Rac8 {[%emt 0:03:23]} 21. Bxe5 {[%emt 0:02:48]} 1/2-1/2

[Event "Caplin Hastings Masters 2023-24"]
[Site "Hastings"]
[Date "2024.01.01"]
[Round "5.28"]
[White "Verbytski, Oleg"]
[Black "Rayner, Francis"]
[Result "1/2-1/2"]
[ECO "B43"]
[WhiteElo "1771"]
[BlackElo "2035"]
[Annotator "NA RC"]
[PlyCount "51"]
[EventDate "2023.12.18"]
[EventType "swiss"]
[EventCountry "ENG"]
[SourceTitle "playchess.com"]
[Source "ChessBase"]
[SourceQuality "1"]
[TimeControl "40/6000+30:3000+30"]

1. e4 {[%emt 0:01:20]} c5 {[%emt 0:00:49]} 2. Nf3 {[%emt 0:00:03]} e6 {[%emt 0:01:38]} 3. d4 {[%emt 0:00:03]} cxd4 {[%emt 0:00:10]} 4. Nxd4 {[%emt 0:00:06]} a6 {[%emt 0:01:59]} 5. Nc3 {[%emt 0:00:20]} Qc7 {[%emt 0:01:18]} 6. a3 {[%emt 0:03:23]} b5 {[%emt 0:05:31]} 7. Bd3 {[%emt 0:04:45]} Bb7 {[%emt 0:01:25]} 8. O-O {[%emt 0:00:25]} Nf6 {[%emt 0:07:35]} 9. Re1 {[%emt 0:01:03]} Bc5 {[%emt 0:07:50]} 10. Be3 {[%emt 0:07:01]} O-O {[%emt 0:04:11]} 11. Nb3 {[%emt 0:01:15]} Bd6 {[%emt 0:05:36]} 12. h3 {[%emt 0:00:46]} Be5 {[%emt 0:04:02]} 13. Bd4 {[%emt 0:03:54]} Nc6 {[%emt 0:02:53]} 14. Bxe5 {[%emt 0:00:13]} Nxe5 {[%emt 0:00:12]} 15. Qe2 {[%emt 0:01:01]} Rac8 {[%emt 0:02:47]} 16. Rad1 {[%emt 0:03:22]} Rfd8 {[%emt 0:05:03]} 17. Qe3 {[%emt 0:02:26]} d6 {[%emt 0:05:34]} 18. Be2 {[%emt 0:08:07]} d5 {[%emt 0:11:19]} 19. exd5 {[%emt 0:10:25]} Nxd5 {[%emt 0:01:42]} 20. Nxd5 {[%emt 0:00:05]} Bxd5 {[%emt 0:00:12]} 21. Nd4 {[%emt 0:01:24]} Nc4 {[%emt 0:03:08]} 22. Bxc4 {[%emt 0:01:05]} Qxc4 {[%emt 0:00:22]} 23. Qe2 {[%emt 0:03:27]} Qc5 {[%emt 0:04:52]} 24. c3 {[%emt 0:00:13]} Bc4 {[%emt 0:07:38]} 25. Qe3 {[%emt 0:03:44]} h6 {[%emt 0:04:04]} 26. Nc2 {[%emt 0:10:55]} 1/2-1/2

[Event "Caplin Hastings Masters 2023-24"]
[Site "Hastings"]
[Date "2024.01.01"]
[Round "5.29"]
[White "Blades, Kit"]
[Black "White, Stuart A"]
[Result "0-1"]
[ECO "B22"]
[WhiteElo "1771"]
[BlackElo "2014"]
[Annotator "NA RC"]
[PlyCount "64"]
[EventDate "2023.12.18"]
[EventType "swiss"]
[EventCountry "ENG"]
[SourceTitle "playchess.com"]
[Source "ChessBase"]
[SourceQuality "1"]
[TimeControl "40/6000+30:3000+30"]

1. e4 {[%emt 0:00:13]} c5 {[%emt 0:00:04]} 2. c3 {[%emt 0:02:59]} Nf6 {[%emt 0:00:06]} 3. e5 {[%emt 0:00:03]} Nd5 {[%emt 0:00:04]} 4. d4 {[%emt 0:00:03]} cxd4 {[%emt 0:00:26]} 5. Nf3 {[%emt 0:00:03]} d6 {[%emt 0:01:08]} 6. cxd4 {[%emt 0:00:06]} Nc6 {[%emt 0:00:43]} 7. Bc4 {[%emt 0:00:05]} dxe5 {[%emt 0:04:00]} 8. dxe5 {[%emt 0:00:17]} Be6 {[%emt 0:00:11]} 9. Qe2 {[%emt 0:11:49]} g6 {[%emt 0:08:35]} 10. O-O {[%emt 0:04:29]} Bg7 {[%emt 0:02:47]} 11. Rd1 {[%emt 0:01:03]} Qa5 {[%emt 0:05:40]} 12. Bd2 {[%emt 0:09:40]} Qc7 {[%emt 0:04:52]} 13. Nc3 {[%emt 0:02:59]} Rd8 {[%emt 0:14:14]} 14. Nxd5 {[%emt 0:05:02]} Bxd5 {[%emt 0:00:11]} 15. Bxd5 {[%emt 0:07:36]} Rxd5 {[%emt 0:00:12]} 16. Bc3 {[%emt 0:00:12]} Rxd1+ {[%emt 0:03:00]} 17. Rxd1 {[%emt 0:00:12]} e6 {[%emt 0:05:50]} 18. h4 {[%emt 0:17:12]} O-O {[%emt 0:02:58]} 19. Qe4 {[%emt 0:01:32]} Rd8 {[%emt 0:03:46]} 20. Rxd8+ {[%emt 0:02:02]} Qxd8 {[%emt 0:00:07]} 21. g3 {[%emt 0:11:07]} Qd5 {[%emt 0:10:27]} 22. Qxd5 {[%emt 0:05:23]} exd5 {[%emt 0:00:20]} 23. Kf1 {[%emt 0:00:08]} Kf8 {[%emt 0:02:27]} 24. Ke2 {[%emt 0:00:14]} Ke7 {[%emt 0:01:37]} 25. Ke3 {[%emt 0:02:04]} h6 {[%emt 0:05:28]} 26. Kf4 {[%emt 0:01:54]} Ke6 {[%emt 0:04:06]} 27. Nd4+ {[%emt 0:01:00]} Nxd4 {[%emt 0:00:12]} 28. Bxd4 {[%emt 0:00:12]} Bxe5+ {[%emt 0:01:22]} 29. Bxe5 {[%emt 0:06:10]} g5+ {[%emt 0:00:06]} 30. Ke3 {[%emt 0:00:33]} Kxe5 {[%emt 0:00:06]} 31. h5 {[%emt 0:00:08]} d4+ {[%emt 0:02:39]} 32. Kd3 {[%emt 0:00:06]} g4 {[%emt 0:00:21]} 0-1